bitfinex/quotes_BTCUSD_20240101
["timestamp","ask_amount","ask_price","bid_price","bid_amount"]
[1704126590439,0.0282,42776.0,42775.0,0.76954787]
[1704126590668,0.0282,42776.0,42775.0,0.71352308]
[1704126591096,0.0282,42776.0,42775.0,0.66318308]
[1704126591308,0.0282,42776.0,42775.0,0.56318308]
[1704126591761,0.0282,42776.0,42775.0,0.14436688]
[1704126591989,0.0282,42776.0,42775.0,0.32996597]
[1704126592410,0.0282,42776.0,42775.0,0.13436688]
[1704126592622,0.0282,42776.0,42775.0,0.14436688]
[1704126593049,0.425733,42778.0,42777.0,0.01]
[1704126593693,0.425733,42778.0,42777.0,0.11336688]
[1704126594118,0.425733,42778.0,42777.0,0.10336688]
[1704126594350,0.56658932,42778.0,42777.0,0.10336688]
[1704126594977,0.56658932,42778.0,42777.0,0.11536688]
[1704126594978,0.56758932,42778.0,42777.0,0.11536688]
[1704126595191,0.56858932,42778.0,42777.0,0.12836688]
[1704126599855,0.427733,42778.0,42777.0,0.12836688]
[1704126600414,0.002,42778.0,42777.0,0.31396597]
[1704126602907,0.002,42778.0,42777.0,0.65718308]
[1704126603143,0.002,42778.0,42777.0,0.73494308]
[1704126603798,0.002,42778.0,42777.0,0.71370308]
[1704126604618,0.002,42778.0,42777.0,0.65718308]
[1704126604768,0.002,42778.0,42777.0,0.32396597]
[1704126605867,0.002,42778.0,42777.0,0.31396597]
[1704126606059,0.002,42778.0,42777.0,0.32396597]
[1704126607792,0.002,42778.0,42777.0,0.13836688]
[1704126608169,0.002,42778.0,42777.0,0.32396597]
[1704126616168,0.002,42778.0,42777.0,0.61112308]
[1704126618642,0.002,42778.0,42777.0,0.55718308]
[1704126618850,0.002,42778.0,42777.0,0.60308308]
[1704126623170,0.002,42778.0,42777.0,0.55718308]
[1704126624318,0.002,42778.0,42777.0,0.13836688]
[1704126625780,0.002,42778.0,42777.0,0.32396597]
[1704126627965,0.17940766,42778.0,42777.0,0.12836688]
[1704126630250,0.17840766,42778.0,42777.0,0.11636688]
[1704126630461,0.17840766,42778.0,42777.0,0.12136688]
[1704126630673,0.17740766,42778.0,42777.0,0.10836688]
[1704126631109,0.17840766,42778.0,42777.0,0.10836688]
[1704126631290,0.17740766,42778.0,42777.0,0.10336688]
[1704126631540,0.17740766,42778.0,42777.0,0.10836688]
[1704126631746,0.17740766,42778.0,42777.0,0.11336688]
[1704126631747,0.17840766,42778.0,42777.0,0.11336688]
[1704126633979,0.64593766,42778.0,42777.0,0.11336688]
[1704126635250,0.46853,42778.0,42777.0,0.11336688]
[1704126635675,0.64094948,42778.0,42777.0,0.11336688]
[1704126641468,0.64094948,42778.0,42777.0,0.04336688]
[1704126641469,0.65535039,42778.0,42777.0,0.04336688]
[1704126641686,0.72485039,42778.0,42777.0,0.04336688]
[1704126643029,0.80849224,42778.0,42777.0,0.04336688]
[1704126643678,0.34096224,42778.0,42777.0,0.04336688]
[1704126643882,0.80849224,42778.0,42777.0,0.04336688]
[1704126644714,0.67835039,42778.0,42777.0,0.04336688]
[1704126644961,0.49153,42778.0,42777.0,0.11336688]
[1704126645195,0.001,42778.0,42777.0,0.11336688]
[1704126645409,0.46853,42778.0,42777.0,0.11336688]
[1704126651373,0.50593091,42778.0,42777.0,0.11336688]
[1704126652463,0.55243091,42778.0,42777.0,0.04336688]
[1704126652693,0.60826703,42778.0,42777.0,0.04336688]
[1704126652896,0.56176703,42778.0,42777.0,0.04336688]
[1704126653123,0.60844703,42778.0,42777.0,0.04336688]
[1704126653317,0.53844703,42778.0,42777.0,0.04336688]
[1704126653998,0.49176703,42778.0,42777.0,0.04336688]
[1704126654432,0.54282703,42778.0,42777.0,0.04336688]
[1704126654644,0.57074509,42778.0,42777.0,0.04336688]
[1704126656002,0.51968509,42778.0,42777.0,0.04336688]
[1704126656221,0.43593091,42778.0,42777.0,0.04336688]
[1704126656933,0.51968509,42778.0,42777.0,0.04336688]
[1704126657144,0.43593091,42778.0,42777.0,0.04336688]
[1704126658007,0.51968509,42778.0,42777.0,0.04336688]
[1704126658448,0.7529022,42778.0,42777.0,0.04336688]
[1704126659903,0.8026422,42778.0,42777.0,0.04336688]
[1704126660311,0.71888802,42778.0,42777.0,0.04336688]
[1704126661414,0.8026422,42778.0,42777.0,0.04336688]
[1704126661759,0.72496832,42778.0,42777.0,0.04336688]
[1704126662186,0.81825517,42778.0,42777.0,0.04336688]
[1704126662544,0.79689323,42778.0,42777.0,0.04336688]
[1704126662760,0.79689323,42778.0,42777.0,0.01]
[1704126662761,0.88064741,42778.0,42777.0,0.01]
[1704126662966,0.93140741,42778.0,42777.0,0.01]
[1704126663584,0.83812056,42778.0,42777.0,0.01]
[1704126664707,0.83812056,42778.0,42777.0,0.04336688]
[1704126664925,0.75436638,42778.0,42777.0,0.04336688]
[1704126665127,0.70360638,42778.0,42777.0,0.04336688]
[1704126666103,0.75937276,42778.0,42777.0,0.04336688]
[1704126666728,0.70360638,42778.0,42777.0,0.04336688]
[1704126666926,0.75936197,42778.0,42777.0,0.04336688]
[1704126668480,0.70360638,42778.0,42777.0,0.04336688]
[1704126669432,0.78723976,42778.0,42777.0,0.04336688]
[1704126671525,0.75560304,42778.0,42777.0,0.04336688]
[1704126672454,0.75560304,42778.0,42777.0,0.01]
[1704126672655,2.00909888,42778.0,42777.0,0.01]
[1704126672915,0.01440091,42772.0,42771.0,0.03336688]
[1704126673231,0.01440091,42772.0,42769.0,0.03336688]
[1704126673232,0.01440091,42770.0,42769.0,0.03336688]
[1704126673459,0.89212881,42770.0,42769.0,0.03336688]
[1704126673665,1.27404881,42770.0,42769.0,0.03336688]
[1704126674328,1.18076196,42770.0,42769.0,0.03436688]
[1704126675185,1.18076196,42770.0,42769.0,0.001]
[1704126675186,1.32212196,42770.0,42769.0,0.001]
[1704126675436,1.36447113,42770.0,42769.0,0.001]
[1704126675643,1.34089113,42770.0,42769.0,0.001]
[1704126676299,0.03,42768.0,42765.0,0.03336688]
[1704126676508,0.467661,42766.0,42765.0,0.03336688]
[1704126676719,1.13156587,42766.0,42765.0,0.03336688]
[1704126676936,1.03827902,42766.0,42765.0,0.03336688]
[1704126677790,1.04127902,42766.0,42765.0,0.03336688]
[1704126678416,1.18784419,42766.0,42765.0,0.03336688]
[1704126678623,1.19284419,42766.0,42765.0,0.03336688]
[1704126679047,1.18984419,42766.0,42765.0,0.03336688]
[1704126679483,1.18984419,42766.0,42762.0,0.2854]
[1704126679484,0.01440091,42765.0,42764.0,0.03336688]
[1704126679709,0.01440091,42763.0,42762.0,0.31876688]
[1704126679941,0.48209491,42763.0,42762.0,0.31876688]
[1704126680154,0.03740091,42763.0,42762.0,0.31876688]
[1704126681702,0.50509491,42763.0,42762.0,0.31876688]
[1704126682134,0.50509491,42763.0,42762.0,0.25076688]
[1704126682341,0.65379596,42763.0,42762.0,0.25076688]
[1704126682970,0.65379596,42763.0,42762.0,0.2184]
[1704126683876,0.18610196,42763.0,42762.0,0.2184]
[1704126684580,0.65379596,42763.0,42762.0,0.2184]
[1704126685292,0.03740091,42763.0,42762.0,0.25176688]
[1704126685841,0.50509491,42763.0,42762.0,0.25176688]
[1704126686964,0.50509491,42763.0,42762.0,0.32176688]
[1704126687182,0.31440091,42765.0,42764.0,0.10336688]
[1704126687410,0.31440091,42765.0,42762.0,0.2184]
[1704126687411,0.01440091,42769.0,42768.0,0.10336688]
[1704126687639,0.31440091,42769.0,42768.0,0.10336688]
[1704126687841,0.78202891,42769.0,42768.0,0.10336688]
[1704126688954,0.80502891,42769.0,42768.0,0.10336688]
[1704126690045,0.33740091,42769.0,42768.0,0.10636688]
[1704126690283,0.02868265,42770.0,42769.0,0.10336688]
[1704126690753,0.01440091,42771.0,42769.0,0.10336688]
[1704126690972,0.01440091,42771.0,42770.0,0.10336688]
[1704126693134,0.01740091,42771.0,42770.0,0.10336688]
[1704126696361,0.003,42771.0,42770.0,0.10336688]
[1704126697060,0.03144274,42771.0,42770.0,0.10336688]
[1704126697501,0.003,42771.0,42770.0,0.10336688]
[1704126698362,0.001,42771.0,42770.0,0.10336688]
[1704126698580,0.002,42771.0,42770.0,0.10936688]
[1704126698789,0.001,42771.0,42770.0,0.33986688]
[1704126699219,0.002,42771.0,42770.0,0.34586688]
[1704126702934,0.002,42771.0,42770.0,0.87468308]
[1704126703157,0.002,42771.0,42770.0,0.93810308]
[1704126704501,0.002,42771.0,42770.0,0.87468308]
[1704126705269,0.002,42771.0,42770.0,0.93990308]
[1704126707913,0.002,42771.0,42770.0,0.87468308]
[1704126711451,0.002,42771.0,42770.0,0.35586688]
[1704126712869,0.002,42771.0,42770.0,0.11536688]
[1704126713318,0.469606,42771.0,42770.0,0.11536688]
[1704126713517,0.399606,42771.0,42770.0,0.11536688]
[1704126714349,0.41400691,42771.0,42770.0,0.11536688]
[1704126717185,0.399606,42771.0,42770.0,0.11536688]
[1704126717480,0.41400691,42771.0,42770.0,0.11536688]
[1704126717717,0.01440091,42771.0,42770.0,0.11536688]
[1704126717946,0.48200691,42771.0,42770.0,0.11536688]
[1704126718418,0.467606,42771.0,42770.0,0.11536688]
[1704126718632,0.48200691,42771.0,42770.0,0.11536688]
[1704126718870,0.467606,42771.0,42770.0,0.11536688]
[1704126719949,0.01440091,42773.0,42772.0,0.10336688]
[1704126720169,0.48198691,42773.0,42772.0,0.10336688]
[1704126720995,0.50986861,42773.0,42772.0,0.10336688]
[1704126721189,0.50986861,42773.0,42772.0,0.10636688]
[1704126722288,0.50986861,42773.0,42772.0,0.10936688]
[1704126722506,0.4954677,42773.0,42772.0,0.10936688]
[1704126723144,0.0278817,42773.0,42772.0,0.10936688]
[1704126723359,0.50986861,42773.0,42772.0,0.10936688]
[1704126723580,0.48198691,42773.0,42772.0,0.10936688]
[1704126729738,0.467586,42773.0,42772.0,0.10936688]
[1704126731526,0.21241682,42778.0,42772.0,0.10936688]
[1704126731736,0.02741682,42778.0,42777.0,0.10336688]
[1704126731948,0.497727,42779.0,42777.0,0.10336688]
[1704126732157,0.497727,42779.0,42778.0,0.10336688]
[1704126732368,0.797727,42779.0,42778.0,0.10336688]
[1704126733840,0.88105049,42779.0,42778.0,0.10836688]
[1704126733969,1.04115144,42779.0,42778.0,0.10836688]
[1704126734180,1.04215144,42779.0,42778.0,0.11436688]
[1704126734793,0.98646711,42779.0,42778.0,0.11436688]
[1704126735591,0.82636616,42779.0,42778.0,0.11436688]
[1704126736463,0.52636616,42779.0,42778.0,0.11436688]
[1704126737125,0.05883916,42779.0,42778.0,0.29996597]
[1704126737336,0.05883916,42779.0,42778.0,0.11436688]
[1704126737548,0.05883916,42779.0,42778.0,0.29996597]
[1704126738438,0.05883916,42779.0,42778.0,0.34718597]
[1704126738653,0.05883916,42779.0,42778.0,0.29996597]
[1704126739108,0.05883916,42779.0,42778.0,0.34520597]
[1704126739931,0.0312,42779.0,42778.0,0.71212308]
[1704126740619,0.0312,42779.0,42778.0,0.64318308]
[1704126743204,0.0312,42779.0,42778.0,0.30996597]
[1704126743724,0.0312,42779.0,42778.0,0.12436688]
[1704126745064,0.0312,42779.0,42778.0,0.30996597]
[1704126747241,0.0312,42779.0,42778.0,0.22436688]
[1704126750529,0.0312,42779.0,42778.0,0.30996597]
[1704126751638,0.0312,42779.0,42778.0,0.47404597]
[1704126755518,0.0312,42779.0,42778.0,0.70726308]
[1704126755983,0.0312,42779.0,42778.0,0.64318308]
[1704126757466,0.0312,42779.0,42778.0,0.54318308]
[1704126757803,0.0312,42779.0,42778.0,0.12436688]
[1704126759590,0.0312,42779.0,42778.0,0.021]
[1704126759849,0.65286511,42779.0,42778.0,0.11436688]
[1704126760093,0.67586511,42779.0,42778.0,0.11436688]
[1704126760326,0.20834611,42779.0,42778.0,0.11436688]
[1704126760566,0.67586511,42779.0,42778.0,0.11436688]
[1704126761047,0.90908222,42779.0,42778.0,0.04436688]
[1704126761989,0.90808222,42779.0,42778.0,0.03336688]
[1704126762255,0.91408222,42779.0,42778.0,0.03336688]
[1704126762724,0.90808222,42779.0,42778.0,0.03336688]
[1704126762899,0.91108222,42779.0,42778.0,0.03336688]
[1704126763112,0.91408222,42779.0,42778.0,0.03336688]
[1704126765665,0.0362,42779.0,42778.0,0.10336688]
[1704126765905,0.503719,42779.0,42778.0,0.10336688]
[1704126766319,0.500719,42779.0,42778.0,0.10336688]
[1704126766530,0.52922168,42779.0,42778.0,0.10336688]
[1704126767368,0.52622168,42779.0,42778.0,0.10336688]
[1704126767814,0.52622168,42779.0,42778.0,0.10736688]
[1704126768386,0.52622168,42779.0,42778.0,0.10636688]
[1704126768599,0.52622168,42779.0,42778.0,0.10936688]
[1704126773263,0.68862835,42779.0,42778.0,0.10936688]
[1704126773463,0.52622168,42779.0,42778.0,0.10936688]
[1704126773680,0.45622168,42779.0,42778.0,0.10936688]
[1704126774325,0.59840577,42779.0,42778.0,0.10936688]
[1704126774890,0.47062259,42779.0,42778.0,0.10936688]
[1704126777574,0.44612925,42779.0,42778.0,0.10936688]
[1704126778650,0.49602168,42779.0,42778.0,0.10936688]
[1704126791102,0.02850268,42779.0,42778.0,0.10936688]
[1704126791316,0.467493,42782.0,42781.0,0.10336688]
[1704126792368,0.467493,42782.0,42781.0,0.15940688]
[1704126792584,0.468493,42782.0,42781.0,0.10336688]
[1704126793022,0.470493,42782.0,42781.0,0.10336688]
[1704126793672,0.003,42782.0,42781.0,0.10336688]
[1704126793903,0.468496,42782.0,42781.0,0.10336688]
[1704126794104,0.467496,42782.0,42781.0,0.10736688]
[1704126794943,0.467496,42782.0,42781.0,0.11236688]
[1704126795206,0.467496,42782.0,42781.0,0.10736688]
[1704126795625,0.468496,42782.0,42781.0,0.11336688]
[1704126796293,0.468496,42782.0,42781.0,0.10936688]
[1704126796716,0.468496,42782.0,42781.0,0.11436688]
[1704126797372,0.48289691,42782.0,42781.0,0.04436688]
[1704126798032,0.48289691,42782.0,42781.0,0.11436688]
[1704126801737,0.53858124,42782.0,42781.0,0.11436688]
[1704126802373,0.48289691,42782.0,42781.0,0.11436688]
[1704126803076,0.53858124,42782.0,42781.0,0.11436688]
[1704126803681,0.07108524,42782.0,42781.0,0.11436688]
[1704126803941,0.53858124,42782.0,42781.0,0.11436688]
[1704126804187,0.468496,42782.0,42781.0,0.11436688]
[1704126806754,0.468496,42782.0,42781.0,0.34726688]
[1704126806967,0.001,42782.0,42781.0,0.39964688]
[1704126808663,0.001,42782.0,42781.0,0.58524597]
[1704126810758,0.001,42782.0,42781.0,0.53286597]
[1704126811773,0.001,42782.0,42781.0,0.34726688]
[1704126816179,0.001,42782.0,42781.0,0.53286597]
[1704126816424,0.001,42782.0,42781.0,0.57918597]
[1704126817596,0.001,42782.0,42781.0,0.59904597]
[1704126818007,0.001,42782.0,42781.0,0.93226308]
[1704126820145,0.001,42782.0,42781.0,0.86608308]
[1704126821008,0.001,42782.0,42781.0,0.91822308]
[1704126821233,0.001,42782.0,42781.0,0.86608308]
[1704126825853,0.001,42782.0,42781.0,0.91978308]
[1704126826027,0.001,42782.0,42781.0,0.86608308]
[1704126826237,0.001,42782.0,42781.0,0.91252308]
[1704126826441,0.001,42782.0,42781.0,0.86608308]
[1704126826690,0.001,42782.0,42781.0,0.91330308]
[1704126827034,0.001,42782.0,42781.0,0.86608308]
[1704126827241,0.001,42782.0,42781.0,0.92062308]
[1704126827517,0.001,42782.0,42781.0,0.86608308]
[1704126829080,0.001,42782.0,42781.0,0.92518308]
[1704126832399,0.001,42782.0,42781.0,0.86608308]
[1704126833741,0.4266931,42785.0,42784.0,0.20336688]
[1704126834348,0.16004051,42787.0,42786.0,0.10336688]
[1704126834590,0.62747151,42787.0,42786.0,0.10336688]
[1704126834807,0.683373,42787.0,42786.0,0.10336688]
[1704126835021,0.52333249,42787.0,42786.0,0.10336688]
[1704126835223,0.5377334,42787.0,42786.0,0.10336688]
[1704126835649,0.5387334,42787.0,42786.0,0.10336688]
[1704126836114,0.5617334,42787.0,42786.0,0.10336688]
[1704126836734,0.59003768,42787.0,42786.0,0.10336688]
[1704126836990,0.59203768,42787.0,42786.0,0.10336688]
[1704126840434,0.56903768,42787.0,42786.0,0.10336688]
[1704126843658,0.59203768,42787.0,42786.0,0.10336688]
[1704126843864,0.53613619,42787.0,42786.0,0.03336688]
[1704126844309,1.24647565,42787.0,42786.0,0.03336688]
[1704126844935,1.4797406,42787.0,42786.0,0.03336688]
[1704126845358,1.36788978,42787.0,42786.0,0.03336688]
[1704126845581,0.01440091,42782.0,42781.0,0.03336688]
[1704126845805,0.48188691,42782.0,42781.0,0.03336688]
[1704126846054,0.74603967,42782.0,42781.0,0.03336688]
[1704126846478,0.74603967,42782.0,42781.0,0.10336688]
[1704126847103,0.75203967,42782.0,42781.0,0.10336688]
[1704126847379,0.74903967,42782.0,42781.0,0.10336688]
[1704126847589,0.51088691,42782.0,42781.0,0.10336688]
[1704126848027,0.59476091,42782.0,42781.0,0.10336688]
[1704126851185,0.59476091,42782.0,42781.0,0.03336688]
[1704126851599,0.82797802,42782.0,42781.0,0.03336688]
[1704126852478,0.74410402,42782.0,42781.0,0.03336688]
[1704126853391,0.98410284,42782.0,42781.0,0.03336688]
[1704126854302,0.98431519,42782.0,42781.0,0.03336688]
[1704126854552,0.82793664,42782.0,42781.0,0.03336688]
[1704126858360,0.85563215,42782.0,42781.0,0.03336688]
[1704126858763,0.01440091,42781.0,42780.0,0.03336688]
[1704126859036,0.58873053,42781.0,42780.0,0.03336688]
[1704126859236,1.12194764,42781.0,42780.0,0.03336688]
[1704126860258,1.12294764,42781.0,42780.0,0.03336688]
[1704126860473,0.01440091,42778.0,42777.0,0.03336688]
[1704126860677,0.56078467,42778.0,42777.0,0.03336688]
[1704126860881,0.70483881,42778.0,42777.0,0.03336688]
[1704126861079,0.64898505,42778.0,42777.0,0.03336688]
[1704126861513,0.70482716,42778.0,42777.0,0.03336688]
[1704126862758,0.71082716,42778.0,42777.0,0.03336688]
[1704126862968,0.70782716,42778.0,42777.0,0.03336688]
[1704126863299,0.71082716,42778.0,42777.0,0.03336688]
[1704126863513,0.71082716,42778.0,42777.0,0.27156688]
[1704126863900,0.65498505,42778.0,42777.0,0.27156688]
[1704126864114,0.65198505,42778.0,42777.0,0.27156688]
[1704126864895,0.65498505,42778.0,42777.0,0.27156688]
[1704126865103,0.51093091,42778.0,42777.0,0.27156688]
[1704126865986,0.50793091,42778.0,42777.0,0.27156688]
[1704126866152,0.50493091,42778.0,42777.0,0.27156688]
[1704126866347,0.50593091,42778.0,42777.0,0.27156688]
[1704126867306,0.50693091,42778.0,42777.0,0.27156688]
[1704126868863,0.50693091,42778.0,42777.0,0.34156688]
[1704126869117,0.46953,42778.0,42777.0,0.34156688]
[1704126870145,0.46853,42778.0,42777.0,0.34156688]
[1704126870573,0.46853,42778.0,42777.0,0.34356688]
[1704126870788,0.46753,42778.0,42777.0,0.34356688]
[1704126870965,0.46753,42778.0,42777.0,0.34556688]
[1704126871563,0.46753,42778.0,42777.0,0.34356688]
[1704126871765,0.46753,42778.0,42777.0,0.34456688]
[1704126872177,0.46753,42778.0,42777.0,0.34856688]
[1704126872465,0.48193091,42778.0,42777.0,0.34156688]
[1704126872707,0.48393091,42778.0,42777.0,0.35456688]
[1704126873178,0.46953,42778.0,42777.0,0.35456688]
[1704126873789,0.48393091,42778.0,42777.0,0.35456688]
[1704126874883,0.46953,42778.0,42777.0,0.35456688]
[1704126875558,0.002,42778.0,42777.0,0.35456688]
[1704126875971,0.01640091,42778.0,42777.0,0.35456688]
[1704126876617,0.46953,42778.0,42777.0,0.35456688]
[1704126877517,0.48393091,42778.0,42777.0,0.35456688]
[1704126877903,0.46953,42778.0,42777.0,0.35456688]
[1704126879534,0.002,42778.0,42777.0,0.35456688]
[1704126880172,0.46953,42778.0,42777.0,0.35456688]
[1704126880978,0.48393091,42778.0,42777.0,0.35456688]
[1704126882245,0.46753,42778.0,42777.0,0.35456688]
[1704126883666,0.07884211,42781.0,42780.0,0.10336688]
[1704126883874,0.37884211,42781.0,42780.0,0.10336688]
[1704126884077,0.84633911,42781.0,42780.0,0.10336688]
[1704126884302,0.767497,42781.0,42780.0,0.10336688]
[1704126884758,0.467497,42781.0,42780.0,0.10336688]
[1704126884982,0.02769551,42782.0,42781.0,0.10336688]
[1704126885200,0.46747,42784.0,42781.0,0.10336688]
[1704126885418,0.46747,42784.0,42783.0,0.10336688]
[1704126886280,0.47047,42784.0,42783.0,0.10336688]
[1704126886492,0.46747,42784.0,42783.0,0.10336688]
[1704126886909,0.47047,42784.0,42783.0,0.10336688]
[1704126887543,0.47347,42784.0,42783.0,0.10336688]
[1704126887746,0.006,42784.0,42783.0,0.20336688]
[1704126887951,0.003,42784.0,42783.0,0.20336688]
[1704126888170,0.49574228,42787.0,42786.0,0.10336688]
[1704126888387,0.79574228,42787.0,42786.0,0.10336688]
[1704126888586,0.49574228,42787.0,42786.0,0.10336688]
[1704126890126,0.49574228,42787.0,42786.0,0.10536688]
[1704126890928,0.51014319,42787.0,42786.0,0.10536688]
[1704126891620,0.51014319,42787.0,42786.0,0.10736688]
[1704126892654,0.51014319,42787.0,42786.0,0.03736688]
[1704126892841,0.51014319,42787.0,42786.0,0.004]
[1704126893054,0.53314319,42787.0,42786.0,0.004]
[1704126893285,1.0564233,42787.0,42786.0,0.004]
[1704126893517,1.41242736,42787.0,42786.0,0.004]
[1704126893708,1.57617565,42787.0,42786.0,0.004]
[1704126893922,1.73913624,42787.0,42786.0,0.004]
[1704126894789,0.01440091,42783.0,42782.0,0.03336688]
[1704126895008,0.70161775,42783.0,42782.0,0.03336688]
[1704126895448,0.64572709,42783.0,42782.0,0.03336688]
[1704126895659,0.01440091,42782.0,42781.0,0.10336688]
[1704126895877,0.467486,42782.0,42781.0,0.10336688]
[1704126897040,0.008,42783.0,42782.0,0.10336688]
[1704126897469,0.01440091,42785.0,42784.0,0.10336688]
[1704126897672,0.48185391,42785.0,42784.0,0.10336688]
[1704126897884,0.78185391,42785.0,42784.0,0.10336688]
[1704126898744,0.767453,42785.0,42784.0,0.10336688]
[1704126898964,0.467453,42785.0,42784.0,0.10536688]
[1704126900274,0.467453,42785.0,42784.0,0.10736688]
[1704126900948,0.49500899,42787.0,42786.0,0.10336688]
[1704126901392,0.467433,42787.0,42786.0,0.10336688]
[1704126902101,0.48183391,42787.0,42786.0,0.10336688]
[1704126902348,0.48183391,42787.0,42786.0,0.03336688]
[1704126902562,0.48283391,42787.0,42786.0,0.10336688]
[1704126902776,0.48283391,42787.0,42786.0,0.03336688]
[1704126902991,0.68222375,42787.0,42786.0,0.10336688]
[1704126903216,0.68322375,42787.0,42786.0,0.10336688]
[1704126903848,0.66022375,42787.0,42786.0,0.10336688]
[1704126905615,0.48383391,42787.0,42786.0,0.10336688]
[1704126906233,0.01640091,42787.0,42786.0,0.10336688]
[1704126906439,0.48383391,42787.0,42786.0,0.10336688]
[1704126913175,0.01440091,42786.0,42785.0,0.03336688]
[1704126913392,0.65511663,42786.0,42785.0,0.03336688]
[1704126913624,0.48184291,42786.0,42785.0,0.10336688]
[1704126913842,0.467442,42786.0,42785.0,0.10336688]
[1704126914468,0.42905134,42790.0,42789.0,0.10336688]
[1704126914697,0.84055868,42790.0,42789.0,0.10336688]
[1704126914950,0.89644934,42790.0,42789.0,0.10336688]
[1704126915161,0.84055868,42790.0,42789.0,0.10336688]
[1704126915573,0.84355868,42790.0,42789.0,0.10336688]
[1704126915781,0.89944934,42790.0,42789.0,0.10336688]
[1704126916025,0.92439467,42790.0,42789.0,0.10336688]
[1704126916255,0.92439467,42790.0,42789.0,0.03336688]
[1704126916446,0.92439467,42790.0,42789.0,0.10336688]
[1704126916658,0.94739467,42790.0,42789.0,0.10336688]
[1704126916869,0.01440091,42786.0,42785.0,0.10336688]
[1704126917077,0.01440091,42783.0,42781.0,0.2239]
[1704126917515,0.01440091,42783.0,42782.0,0.10336688]
[1704126917733,0.01440091,42782.0,42781.0,0.25726688]
[1704126917939,0.48188691,42782.0,42781.0,0.25726688]
[1704126918157,0.48188691,42782.0,42781.0,0.32726688]
[1704126918158,0.01440091,42782.0,42781.0,0.32726688]
[1704126918361,0.48188691,42782.0,42781.0,0.32726688]
[1704126920091,0.467486,42782.0,42781.0,0.32726688]
[1704126920283,0.467486,42782.0,42781.0,0.32826688]
[1704126921162,0.4889617,42789.0,42781.0,0.32826688]
[1704126921163,0.467458,42785.0,42784.0,0.10336688]
[1704126921776,0.3,42789.0,42788.0,0.10336688]
[1704126921990,0.78180991,42789.0,42788.0,0.10336688]
[1704126922193,0.767409,42789.0,42788.0,0.10336688]
[1704126922400,0.78180991,42789.0,42788.0,0.10336688]
[1704126923839,0.767409,42789.0,42788.0,0.10336688]
[1704126924242,0.78180991,42789.0,42788.0,0.10336688]
[1704126924454,0.83771239,42789.0,42788.0,0.10336688]
[1704126924661,0.83771239,42789.0,42788.0,0.10436688]
[1704126924898,0.78180991,42789.0,42788.0,0.10436688]
[1704126925122,0.83771239,42789.0,42788.0,0.10436688]
[1704126926913,0.78180991,42789.0,42788.0,0.10436688]
[1704126927118,0.83771239,42789.0,42788.0,0.10436688]
[1704126927337,0.78180991,42789.0,42788.0,0.10436688]
[1704126927538,0.83771239,42789.0,42788.0,0.10436688]
[1704126927962,0.82331148,42789.0,42788.0,0.10436688]
[1704126928421,0.467409,42789.0,42788.0,0.10436688]
[1704126931338,0.467409,42789.0,42788.0,0.15344688]
[1704126931954,0.467409,42789.0,42788.0,0.10436688]
[1704126932386,0.467409,42789.0,42788.0,0.11145669]
[1704126933631,0.467409,42789.0,42788.0,0.16209669]
[1704126933803,0.02855977,42790.0,42789.0,0.20336688]
[1704126934002,0.467382,42792.0,42791.0,0.10336688]
[1704126934542,0.467382,42792.0,42791.0,0.11042095]
[1704126935341,0.471382,42792.0,42791.0,0.11042095]
[1704126935880,0.49934133,42792.0,42791.0,0.11042095]
[1704126936500,0.49934133,42792.0,42791.0,0.11842095]
[1704126936715,0.50034133,42792.0,42791.0,0.16972095]
[1704126937121,0.49934133,42792.0,42791.0,0.16172095]
[1704126937322,0.49634133,42792.0,42791.0,0.16972095]
[1704126937518,0.49634133,42792.0,42791.0,0.11842095]
[1704126937730,0.49734133,42792.0,42791.0,0.12642095]
[1704126937969,0.49634133,42792.0,42791.0,0.11842095]
[1704126938125,0.49734133,42792.0,42791.0,0.12642095]
[1704126938541,0.002,42792.0,42791.0,0.22642095]
[1704126938865,0.002,42792.0,42791.0,0.27958095]
[1704126939312,0.002,42792.0,42791.0,0.22642095]
[1704126941261,0.002,42792.0,42791.0,0.64523715]
[1704126941400,0.002,42792.0,42791.0,0.69539715]
[1704126943220,0.002,42792.0,42791.0,0.45963806]
[1704126944834,0.002,42792.0,42791.0,0.64523715]
[1704126945555,0.002,42792.0,42791.0,0.45963806]
[1704126945723,0.002,42792.0,42791.0,0.64523715]
[1704126950300,0.002,42792.0,42791.0,0.45963806]
[1704126950546,0.002,42792.0,42791.0,0.12642095]
[1704126954156,0.399368,42793.0,42791.0,0.12642095]
[1704126954406,0.399368,42793.0,42792.0,0.10336688]
[1704126954609,0.399368,42793.0,42792.0,0.11037767]
[1704126955464,0.400368,42793.0,42792.0,0.11037767]
[1704126955908,0.399368,42793.0,42792.0,0.11037767]
[1704126956339,0.399368,42793.0,42792.0,0.11637767]
[1704126956340,0.401368,42793.0,42792.0,0.11637767]
[1704126956563,0.400368,42793.0,42792.0,0.11637767]
[1704126956769,0.469371,42793.0,42792.0,0.12337767]
[1704126957415,0.002,42793.0,42792.0,0.22337767]
[1704126957636,0.002,42793.0,42792.0,0.27743767]
[1704126957862,0.002,42793.0,42792.0,0.36303676]
[1704126958086,0.002,42793.0,42792.0,0.69625387]
[1704126960382,0.002,42793.0,42792.0,0.64219387]
[1704126961033,0.002,42793.0,42792.0,0.69427387]
[1704126962681,0.002,42793.0,42792.0,0.64219387]
[1704126965272,0.002,42793.0,42792.0,0.54219387]
[1704126965490,0.002,42793.0,42792.0,0.64219387]
[1704126969507,0.002,42793.0,42792.0,0.69517387]
[1704126970472,0.002,42793.0,42792.0,0.64219387]
[1704126974040,0.002,42793.0,42792.0,0.69535387]
[1704126974251,0.002,42793.0,42792.0,0.64219387]
[1704126975828,0.002,42793.0,42792.0,0.69499387]
[1704126976298,0.002,42793.0,42792.0,0.64219387]
[1704126977397,0.469366,42793.0,42792.0,0.12337767]
[1704126979348,0.52526848,42793.0,42792.0,0.12337767]
[1704126980460,0.52545927,42793.0,42792.0,0.12337767]
[1704126981351,0.05809327,42793.0,42792.0,0.12337767]
[1704126981535,0.52545927,42793.0,42792.0,0.12337767]
[1704126981876,0.469366,42793.0,42792.0,0.12337767]
[1704126982080,0.52545927,42793.0,42792.0,0.12337767]
[1704126990874,0.469366,42793.0,42792.0,0.12337767]
[1704126991717,0.002,42793.0,42792.0,0.37065676]
[1704126992752,0.002,42793.0,42792.0,0.36364597]
[1704126993157,0.002,42793.0,42792.0,0.37065231]
[1704126993381,0.002,42793.0,42792.0,0.35613231]
[1704126994531,0.002,42793.0,42792.0,0.30897231]
[1704126994741,0.002,42793.0,42792.0,0.35409231]
[1704127000689,0.002,42793.0,42792.0,0.71652942]